[Event "WYCC 2018 G18"]
[Site "Halkidiki"]
[Date "2018.10.30"]
[Round "11"]
[White "Sliwicka, Alicja"]
[Black "Radeva, Viktoria"]
[Result "1-0"]
[ECO "B40"]
[WhiteElo "2264"]
[BlackElo "2163"]
[Annotator "NA"]
[PlyCount "103"]
[EventDate "2018.10.20"]
[EventType "swiss"]
[EventCountry "GRE"]
[SourceTitle "playchess.com"]
[Source "ChessBase"]
[SourceQuality "1"]
[TimeControl "40/5400+30:1800+30"]

1. e4 {[%emt 0:00:00]} c5 {[%emt 0:00:00]} 2. Nf3 {[%emt 0:00:00]} e6 {[%emt 0:00:00]} 3. c4 {[%emt 0:00:00]} Nc6 {[%emt 0:06:51]} 4. Nc3 {[%emt 0:00:00]} e5 {[%emt 0:05:21]} 5. d3 {[%emt 0:00:08]} d6 {[%emt 0:00:26]} 6. Be2 {[%emt 0:00:08]} Be7 {[%emt 0:01:22] B40: Sicilian: 2...e6, Unusual lines} 7. O-O {[%emt 0:00:39]} Nf6 {[%emt 0:00:03]} 8. a3 {[%emt 0:02:59]} O-O {[%emt 0:00:35]} 9. Rb1 {[%emt 0:05:31]} Bg4 $146 {[%emt 0:14:10]} 10. Ne1 {[%emt 0:04:41]} Bxe2 {[%emt 0:02:35]} 11. Nxe2 {[%emt 0:01:34]} Ne8 {[%emt 0:08:43]} 12. b4 {[%emt 0:02:47]} b6 {[%emt 0:00:26]} 13. Nc2 {[%emt 0:07:59]} Nc7 {[%emt 0:02:43]} 14. Nc3 {[%emt 0:07:12]} Bg5 {[%emt 0:07:00]} 15. Be3 {[%emt 0:01:00]} Ne6 {[%emt 0:02:01]} 16. Nd5 {[%emt 0:01:55]} Ncd4 {[%emt 0:06:15]} 17. Bxd4 {[%emt 0:03:14]} cxd4 {[%emt 0:00:14]} 18. Qe2 {[%emt 0:17:08]} g6 {[%emt 0:04:53]} 19. g3 {[%emt 0:03:45]} h5 {[%emt 0:10:49]} 20. Kh1 {[%emt 0:03:25]} h4 {[%emt 0:04:50]} 21. f4 {[%emt 0:01:24]} Bh6 {[%emt 0:02:48]} 22. f5 {[%emt 0:02:15]} hxg3 {[%emt 0:07:20]} 23. Qg4 {[%emt 0:06:44]} g2+ {[%emt 0:04:27]} 24. Qxg2 {[%emt 0:01:08]} Ng7 {[%emt 0:04:27]} 25. fxg6 {[%emt 0:01:36]} Qg5 {[%emt 0:00:55]} 26. Nf6+ {[%emt 0:02:51]} Kh8 {[%emt 0:00:10]} 27. Qxg5 {[%emt 0:00:39]} Bxg5 {[%emt 0:00:02]} 28. Nh7 {[%emt 0:00:13]} Bf4 {[%emt 0:00:32]} 29. Nxf8 {[%emt 0:00:21]} Rxf8 {[%emt 0:00:04]} 30. Nxd4 {[%emt 0:00:49]} fxg6 {[%emt 0:00:18]} 31. Ne2 {[%emt 0:01:14]} g5 {[%emt 0:00:09]} 32. Nxf4 {[%emt 0:00:21]} gxf4 {[%emt 0:00:11]} 33. Rf3 {[%emt 0:00:31]} Kg8 $18 {[%emt 0:02:36]} 34. Rg1 {[%emt 0:00:14]} Kf7 {[%emt 0:02:32]} 35. Rh3 {[%emt 0:00:41]} Ne6 {[%emt 0:00:16]} 36. Rh7+ {[%emt 0:00:47]} Kf6 {[%emt 0:00:30]} 37. Rh6+ {[%emt 0:02:57]} Ke7 {[%emt 0:00:18]} 38. Rgg6 {[%emt 0:00:47]} Nd4 {[%emt 0:00:20]} 39. Rg7+ {[%emt 0:00:31]} Rf7 {[%emt 0:00:57]} 40. Rxf7+ {[%emt 0:00:00]} Kxf7 {[%emt 0:00:00]} 41. Kg2 {[%emt 0:00:44]} Ne6 {[%emt 0:01:11]} 42. Rh7+ {[%emt 0:01:27]} Ng7 {[%emt 0:00:02]} 43. Rh8 {[%emt 0:00:11]} Ne8 {[%emt 0:00:45]} 44. h4 {[%emt 0:00:22]} a5 {[%emt 0:00:15]} 45. h5 {[%emt 0:01:28]} Nf6 {[%emt 0:00:25]} 46. Rb8 {[%emt 0:00:43]} axb4 {[%emt 0:00:32]} 47. axb4 {[%emt 0:00:09]} Nxh5 {[%emt 0:00:04]} 48. Rxb6 {[%emt 0:00:10]} Ke7 {[%emt 0:00:08]} 49. Rb7+ {[%emt 0:00:18]} Ke6 {[%emt 0:00:19]} 50. b5 {[%emt 0:00:33]} Nf6 {[%emt 0:00:13]} 51. c5 {[%emt 0:01:00]} dxc5 {[%emt 0:00:45]} 52. Rb6+ {[%emt 0:00:17] Kd5} 1-0

[Event "WYCC 2018 G18"]
[Site "Halkidiki"]
[Date "2018.10.30"]
[Round "11"]
[White "Injac, Teodora"]
[Black "Arpita, Mukherjee"]
[Result "1/2-1/2"]
[ECO "A48"]
[WhiteElo "2258"]
[BlackElo "2147"]
[Annotator "ChessBase"]
[PlyCount "141"]
[EventDate "2018.10.20"]
[EventType "swiss"]
[EventCountry "GRE"]
[SourceTitle "playchess.com"]
[Source "ChessBase"]
[SourceQuality "1"]
[TimeControl "40/5400+30:1800+30"]

1. d4 {[%emt 0:00:00]} Nf6 {[%emt 0:00:00]} 2. Nf3 {[%emt 0:00:00]} g6 {[%emt 0:00:05]} 3. Nbd2 {[%emt 0:00:01]} d5 {[%emt 0:00:15]} 4. b4 {[%emt 0:01:05]} Bg7 {[%emt 0:00:21]} 5. Bb2 {[%emt 0:01:31]} a5 {[%emt 0:00:06]} 6. b5 {[%emt 0:01:21]} c5 {[%emt 0:00:22]} 7. dxc5 {[%emt 0:02:01]} Nbd7 {[%emt 0:02:47]} 8. c6 {[%emt 0:03:52]} bxc6 {[%emt 0:00:33]} 9. bxc6 {[%emt 0:00:04]} Nc5 {[%emt 0:07:16]} 10. e3 {[%emt 0:25:32]} O-O {[%emt 0:06:17]} 11. a4 {[%emt 0:09:45]} Ba6 {[%emt 0:22:26]} 12. Bb5 {[%emt 0:07:53]} Ne8 {[%emt 0:18:44]} 13. Bxg7 {[%emt 0:03:02]} Kxg7 {[%emt 0:00:24]} 14. Nb1 {[%emt 0:06:23]} Qd6 {[%emt 0:04:15]} 15. O-O {[%emt 0:01:46]} Nc7 {[%emt 0:02:46]} 16. Na3 {[%emt 0:00:31]} Rfb8 {[%emt 0:12:26]} 17. Qd4+ {[%emt 0:11:52]} f6 {[%emt 0:01:02]} 18. Rfb1 {[%emt 0:07:26]} e5 {[%emt 0:00:32]} 19. Qd2 {[%emt 0:01:25]} Ne4 {[%emt 0:01:21]} 20. Qe1 {[%emt 0:03:35]} f5 {[%emt 0:04:26]} 21. c4 {[%emt 0:00:55]} d4 {[%emt 0:00:58]} 22. exd4 {[%emt 0:01:11]} exd4 {[%emt 0:00:07]} 23. Rd1 {[%emt 0:00:37]} Ne6 {[%emt 0:01:03]} 24. Bxa6 {[%emt 0:04:13]} Rxa6 {[%emt 0:00:06]} 25. Nb5 {[%emt 0:00:02]} Qxc6 {[%emt 0:01:03]} 26. Nfxd4 {[%emt 0:00:26]} Qxc4 {[%emt 0:01:52]} 27. Nxe6+ {[%emt 0:01:11]} Rxe6 {[%emt 0:00:20]} 28. Qxa5 {[%emt 0:00:34]} Re7 {[%emt 0:01:41]} 29. Rdc1 {[%emt 0:01:25]} Qe2 {[%emt 0:02:09]} 30. Qe1 {[%emt 0:00:03]} Qxe1+ {[%emt 0:00:36]} 31. Rxe1 {[%emt 0:00:01]} Reb7 {[%emt 0:00:17]} 32. Rec1 {[%emt 0:00:37]} Ra8 {[%emt 0:00:52]} 33. f3 {[%emt 0:02:46]} Nd2 {[%emt 0:01:05]} 34. Rc7+ {[%emt 0:00:53]} Rxc7 {[%emt 0:00:08]} 35. Nxc7 {[%emt 0:00:01]} Ra5 {[%emt 0:00:50]} 36. Nb5 {[%emt 0:00:28]} Nb3 {[%emt 0:01:24]} 37. Ra2 {[%emt 0:01:01]} Nc5 {[%emt 0:00:19]} 38. Nc3 {[%emt 0:00:05]} Kf6 {[%emt 0:00:26]} 39. Rb2 {[%emt 0:02:46]} Ra6 {[%emt 0:04:39]} 40. Rb4 {[%emt 0:00:00]} Ke5 {[%emt 0:00:00]} 41. Rc4 {[%emt 0:04:24]} Ra5 {[%emt 0:05:59]} 42. f4+ {[%emt 0:05:54]} Kd6 {[%emt 0:01:54]} 43. Kf2 {[%emt 0:00:38]} Ra8 {[%emt 0:01:33]} 44. Kf3 {[%emt 0:03:18]} Kc6 {[%emt 0:03:43]} 45. h3 {[%emt 0:10:01]} Kd6 {[%emt 0:06:13]} 46. g4 fxg4+ {[%emt 0:00:48]} 47. hxg4 {[%emt 0:01:07]} Ne6 {[%emt 0:01:34]} 48. g5 {[%emt 0:02:14]} Rf8 {[%emt 0:01:42]} 49. Kg4 {[%emt 0:00:11]} Rf5 {[%emt 0:00:29]} 50. Rb4 {[%emt 0:01:32]} Kc6 {[%emt 0:03:00]} 51. Ne2 {[%emt 0:00:56]} Rd5 {[%emt 0:00:50]} 52. Rb8 {[%emt 0:01:23]} Rd2 {[%emt 0:00:32]} 53. Kf3 {[%emt 0:00:31]} Rd3+ {[%emt 0:00:31]} 54. Kf2 {[%emt 0:00:17]} Ra3 {[%emt 0:00:27]} 55. Ra8 {[%emt 0:01:25]} Nc5 {[%emt 0:01:42]} 56. Rh8 {[%emt 0:00:56]} Nd3+ {[%emt 0:00:55]} 57. Ke3 {[%emt 0:03:17]} Nc1+ {[%emt 0:01:01]} 58. Kd2 {[%emt 0:00:02]} Nxe2 {[%emt 0:00:05]} 59. Kxe2 {[%emt 0:00:05]} Rxa4 {[%emt 0:00:02]} 60. Ke3 {[%emt 0:00:24]} Ra7 {[%emt 0:00:09]} 61. Rd8 {[%emt 0:02:23]} Re7+ {[%emt 0:00:10]} 62. Kd4 {[%emt 0:00:36]} Kc7 {[%emt 0:00:28]} 63. Ra8 {[%emt 0:00:26]} Kb7 {[%emt 0:01:00]} 64. Rf8 {[%emt 0:00:19]} Kc6 {[%emt 0:01:23]} 65. Rf6+ {[%emt 0:00:07]} Kc7 {[%emt 0:00:14]} 66. Kd5 {[%emt 0:00:03]} Kd7 {[%emt 0:01:19]} 67. Rf8 {[%emt 0:00:29]} Re1 {[%emt 0:01:06]} 68. Ra8 {[%emt 0:00:51]} Re7 {[%emt 0:00:45]} 69. Rb8 {[%emt 0:00:37]} Kc7 {[%emt 0:00:09]} 70. Rh8 {[%emt 0:01:10]} Kd7 {[%emt 0:01:18]} 71. Rf8 {[%emt 0:00:33]} 1/2-1/2

[Event "WYCC 2018 G18"]
[Site "Halkidiki"]
[Date "2018.10.30"]
[Round "11"]
[White "Antolak, Julia"]
[Black "Tejaswini, Sagar"]
[Result "0-1"]
[ECO "C95"]
[WhiteElo "2240"]
[BlackElo "2139"]
[Annotator "NA"]
[PlyCount "132"]
[EventDate "2018.10.20"]
[EventType "swiss"]
[EventCountry "GRE"]
[SourceTitle "playchess.com"]
[Source "ChessBase"]
[SourceQuality "1"]
[TimeControl "40/5400+30:1800+30"]

1. e4 {[%emt 0:00:00]} e5 {[%emt 0:00:00]} 2. Nf3 {[%emt 0:00:00]} Nc6 {[%emt 0:00:00]} 3. Bb5 {[%emt 0:00:00]} a6 {[%emt 0:00:00]} 4. Ba4 {[%emt 0:00:00]} Nf6 {[%emt 0:00:00]} 5. O-O {[%emt 0:00:07]} Be7 {[%emt 0:00:00]} 6. Re1 {[%emt 0:00:06]} b5 {[%emt 0:00:00]} 7. Bb3 {[%emt 0:00:03]} d6 {[%emt 0:00:04]} 8. c3 {[%emt 0:00:04]} O-O {[%emt 0:00:11]} 9. h3 {[%emt 0:00:07]} Nb8 {[%emt 0:00:15]} 10. d4 {[%emt 0:00:39]} Nbd7 {[%emt 0:00:17]} 11. c4 {[%emt 0:02:00]} c6 {[%emt 0:00:19]} 12. a3 {[%emt 0:00:11]} bxc4 {[%emt 0:00:15] C95: Closed Ruy Lopez: Breyer Variation with 10 d4} (12... Bb7 13. Nc3 Re8 14. dxe5 Nxe5 15. Nxe5 dxe5 16. Be3 Qxd1 17. Rexd1 Kf8 18. f3 Red8 19. Kf1 Ke8 20. Rac1 Rxd1+ 21. Nxd1 {1-0 (48) Lu,S (2640)-Zhao,J (2601) China 2018}) 13. Bxc4 {[%emt 0:00:08]} Nxe4 {[%emt 0:00:24]} 14. dxe5 {[%emt 0:00:41]} d5 {[%emt 0:00:10]} 15. Bd3 {[%emt 0:02:13]} Ndc5 {[%emt 0:00:37]} 16. Bc2 {[%emt 0:01:33]} a5 {[%emt 0:02:28]} 17. Nbd2 $146 {[%emt 0:12:39]} ({Predecessor:} 17. Nd4 Qc7 18. f3 Ng5 19. Nc3 Rb8 20. Rb1 {½-½ (44) Kremenietsky,A-Baikov,V Soviet Union 1974}) 17... f5 {[%emt 0:11:13]} 18. exf6 {[%emt 0:01:26]} Nxf6 {[%emt 0:00:54]} 19. Nd4 {[%emt 0:05:16]} Bd7 {[%emt 0:01:34]} 20. N2f3 {[%emt 0:00:38]} Nce4 {[%emt 0:04:52]} 21. Ne5 {[%emt 0:13:03]} Bc5 {[%emt 0:08:35]} 22. Be3 {[%emt 0:05:26]} Qc7 {[%emt 0:04:57]} 23. Nxd7 {[%emt 0:05:40]} Qxd7 {[%emt 0:00:12]} 24. Rc1 {[%emt 0:01:37]} Bxd4 {[%emt 0:10:54]} 25. Bxd4 {[%emt 0:00:31]} Rac8 {[%emt 0:05:43]} 26. Ba4 {[%emt 0:17:53]} Qb7 {[%emt 0:09:26]} 27. b4 {[%emt 0:04:19]} axb4 {[%emt 0:03:33]} 28. axb4 {[%emt 0:00:05]} Qxb4 {[%emt 0:04:49]} 29. Bxc6 {[%emt 0:01:33]} Qd6 {[%emt 0:01:45]} 30. Qa4 {[%emt 0:02:44]} Nh5 {[%emt 0:08:16]} 31. Qb5 {[%emt 0:05:45]} Nf4 {[%emt 0:01:33]} 32. Be3 {[%emt 0:01:39]} Kh8 {[%emt 0:02:31]} 33. Bxf4 {[%emt 0:09:43]} Qxf4 {[%emt 0:00:30]} 34. Qxd5 {[%emt 0:02:55]} Qxf2+ {[%emt 0:01:34]} 35. Kh2 {[%emt 0:02:17]} Qg3+ {[%emt 0:00:21]} 36. Kg1 {[%emt 0:00:33]} Nf2 {[%emt 0:07:33]} 37. Qh5 {[%emt 0:01:48]} Nd3 {[%emt 0:07:51]} 38. Be4 {[%emt 0:00:22]} g6 {[%emt 0:00:14]} 39. Bxg6 {[%emt 0:01:36]} Qxg6 {[%emt 0:00:46]} 40. Qxg6 {[%emt 0:00:00]} hxg6 {[%emt 0:00:00]} 41. Rxc8 {[%emt 0:00:14]} Rxc8 {[%emt 0:00:11]} 42. Re2 {[%emt 0:01:23]} Kg7 {[%emt 0:00:19]} 43. Rd2 {[%emt 0:01:58]} Rc3 {[%emt 0:02:13]} 44. Kh2 {[%emt 0:00:30]} Kf6 {[%emt 0:00:11]} 45. Ra2 {[%emt 0:00:58]} Kf5 {[%emt 0:01:29]} 46. Ra5+ {[%emt 0:00:45]} Ne5 {[%emt 0:00:33]} 47. Ra2 {[%emt 0:00:11]} Nd3 {[%emt 0:02:14]} 48. Ra5+ {[%emt 0:00:09]} Rc5 {[%emt 0:00:47]} 49. Ra2 {[%emt 0:00:46]} Re5 {[%emt 0:01:38]} 50. Ra3 {[%emt 0:02:46]} Nf4 {[%emt 0:01:50]} 51. Kg3 {[%emt 0:02:15]} Rd5 {[%emt 0:00:38]} 52. Kf2 {[%emt 0:02:36]} g5 {[%emt 0:03:06]} 53. Ra2 {[%emt 0:01:04]} Rc5 {[%emt 0:02:33]} 54. Kg3 {[%emt 0:01:51]} Rc3+ {[%emt 0:00:13]} 55. Kh2 {[%emt 0:00:41]} Re3 {[%emt 0:00:57]} 56. Ra5+ {[%emt 0:05:16] [#]} Re5 $1 {[%emt 0:01:07]} 57. Ra2 {[%emt 0:01:52]} Re2 {[%emt 0:00:48]} 58. Rxe2 {[%emt 0:04:11]} Nxe2 {[%emt 0:00:03]} 59. g3 {[%emt 0:01:15]} Nd4 {[%emt 0:01:52]} 60. Kg2 {[%emt 0:00:19]} Ke4 {[%emt 0:00:10]} 61. Kf2 {[%emt 0:00:29]} Nf5 {[%emt 0:00:10]} 62. g4 {[%emt 0:00:20]} Nh4 {[%emt 0:00:41]} (62... Ne7 $19 63. Ke2 Ng6) 63. Ke2 {[%emt 0:00:11]} Kf4 {[%emt 0:00:22]} 64. Kf2 {[%emt 0:00:02]} Ng6 {[%emt 0:00:17]} 65. Kg2 {[%emt 0:00:07]} Ke3 {[%emt 0:00:26]} 66. Kg3 {[%emt 0:00:04]} Nh4 {[%emt 0:00:19]} 0-1

[Event "WYCC 2018 G18"]
[Site "Halkidiki"]
[Date "2018.10.30"]
[Round "11"]
[White "Represa Perez, Mireya"]
[Black "Nguyen, Hong Ngoc"]
[Result "1-0"]
[ECO "C03"]
[WhiteElo "2151"]
[BlackElo "1861"]
[Annotator "NA"]
[PlyCount "83"]
[EventDate "2018.10.20"]
[EventType "swiss"]
[EventCountry "GRE"]
[SourceTitle "playchess.com"]
[Source "ChessBase"]
[SourceQuality "1"]
[TimeControl "40/5400+30:1800+30"]

1. e4 {[%emt 0:00:00]} e6 {[%emt 0:00:00]} 2. d4 {[%emt 0:00:00]} d5 {[%emt 0:00:00]} 3. Nd2 {[%emt 0:00:00]} dxe4 {[%emt 0:00:00]} 4. Nxe4 {[%emt 0:00:00]} Nf6 {[%emt 0:00:07]} 5. Bd3 {[%emt 0:00:27]} Nbd7 {[%emt 0:01:27]} 6. Nf3 {[%emt 0:00:28]} Be7 {[%emt 0:00:44]} 7. Qe2 {[%emt 0:03:49]} c6 {[%emt 0:02:44] C10: French with 3 Nc3: Unusual Black 3rd moves and 3...dxe4} (7... c5 8. Nxc5 Nxc5 9. dxc5 Qa5+ 10. Bd2 Qxc5 11. Ne5 O-O 12. O-O-O Rd8 13. a3 Qc7 14. Bg5 Rd5 15. f4 h6 16. h4 Bd7 17. g4 {½-½ (77) Macieja,B (2529)-Cordova,E (2645) Leon 2017}) 8. O-O {[%emt 0:04:16]} Qc7 {[%emt 0:01:48]} 9. Re1 {[%emt 0:07:26]} h6 {[%emt 0:01:14]} 10. Ng3 {[%emt 0:01:15]} b6 $146 {[%emt 0:01:12]} ({Predecessor:} 10... O-O 11. h3 Re8 12. Be3 Bd6 13. Nf1 Nd5 14. Qd2 Nxe3 15. fxe3 {½-½ (33) Pardinas Riano,E (1838)-Navas Marin,F Madrid 2009}) 11. Nf5 {[%emt 0:08:06]} Bf8 {[%emt 0:00:56]} 12. g3 {[%emt 0:02:52]} Nh5 {[%emt 0:05:55]} 13. d5 {[%emt 0:06:41]} cxd5 {[%emt 0:02:20]} 14. N3d4 {[%emt 0:03:33]} Ndf6 {[%emt 0:01:05]} 15. g4 {[%emt 0:18:26]} Nf4 {[%emt 0:03:08]} 16. Bb5+ {[%emt 0:01:00]} Bd7 {[%emt 0:02:31]} 17. Bxd7+ {[%emt 0:01:23]} Kxd7 {[%emt 0:00:36]} 18. Qb5+ {[%emt 0:05:47]} Kc8 {[%emt 0:00:11]} 19. Qa6+ $1 {[%emt 0:06:03]} Kd7 {[%emt 0:02:44]} 20. Qa4+ {[%emt 0:00:59]} Kc8 {[%emt 0:01:45]} 21. Nb5 {[%emt 0:01:48]} Nh3+ {[%emt 0:00:52]} 22. Kg2 {[%emt 0:01:10]} Qd7 {[%emt 0:00:25]} 23. Qa6+ {[%emt 0:07:15]} Kd8 {[%emt 0:01:27]} 24. Kxh3 {[%emt 0:01:08]} exf5 {[%emt 0:00:21]} 25. Bf4 {[%emt 0:00:12]} Ne4 $18 {[%emt 0:04:29]} (25... Qc8 $11 26. Qa4 fxg4+ 27. Kg2 Qc6) 26. Kg2 {[%emt 0:02:58]} fxg4 {[%emt 0:01:46]} 27. Bc7+ {[%emt 0:02:12]} Ke7 {[%emt 0:00:59]} 28. Qb7 {[%emt 0:02:58]} Re8 {[%emt 0:04:07]} 29. Rad1 {[%emt 0:01:39]} Kf6 {[%emt 0:03:13]} 30. Rxd5 {[%emt 0:00:48]} Qe6 {[%emt 0:01:37]} 31. Re5 {[%emt 0:00:37]} Qd7 {[%emt 0:01:23]} 32. Qxe4 {[%emt 0:01:27]} Rxe5 {[%emt 0:00:50]} 33. Bxe5+ {[%emt 0:00:15]} Kg5 {[%emt 0:00:15]} 34. Nd4 {[%emt 0:04:16]} f5 {[%emt 0:02:25]} 35. Bf4+ {[%emt 0:00:45]} Kg6 {[%emt 0:00:38]} 36. Qe6+ {[%emt 0:00:11]} Qxe6 {[%emt 0:00:08]} 37. Rxe6+ {[%emt 0:00:03]} Kf7 {[%emt 0:00:08]} 38. Rc6 {[%emt 0:00:12]} g6 {[%emt 0:01:00]} 39. Be5 {[%emt 0:00:58]} Rg8 {[%emt 0:00:16]} 40. Rc7+ {[%emt 0:00:00]} Ke8 {[%emt 0:00:00]} 41. Rxa7 {[%emt 0:00:35]} h5 {[%emt 0:00:59]} 42. Ne6 {[%emt 0:02:30]} 1-0

[Event "WYCC 2018 G18"]
[Site "Halkidiki"]
[Date "2018.10.30"]
[Round "11"]
[White "Rozman, Monika"]
[Black "Jie, Tianhui"]
[Result "1/2-1/2"]
[ECO "C50"]
[WhiteElo "2141"]
[BlackElo "1849"]
[Annotator "NA"]
[PlyCount "85"]
[EventDate "2018.10.20"]
[EventType "swiss"]
[EventCountry "GRE"]
[SourceTitle "playchess.com"]
[Source "ChessBase"]
[SourceQuality "1"]
[TimeControl "40/5400+30:1800+30"]

1. e4 {[%emt 0:00:00]} e5 {[%emt 0:00:00]} 2. Nf3 {[%emt 0:00:00]} Nc6 {[%emt 0:00:00]} 3. Bc4 {[%emt 0:00:00]} Be7 {[%emt 0:00:00]} 4. d3 {[%emt 0:00:45]} Nf6 {[%emt 0:00:26]} 5. O-O {[%emt 0:00:19]} O-O {[%emt 0:00:30]} 6. Re1 {[%emt 0:00:27]} d6 {[%emt 0:00:36]} 7. c3 {[%emt 0:01:33]} Na5 {[%emt 0:01:40]} 8. Bb5 {[%emt 0:01:57]} a6 {[%emt 0:00:14]} 9. Ba4 {[%emt 0:00:04]} b5 {[%emt 0:00:11]} 10. Bc2 {[%emt 0:00:05]} c5 {[%emt 0:00:44]} 11. Nbd2 {[%emt 0:01:58]} Re8 {[%emt 0:04:12]} 12. Nf1 {[%emt 0:01:00]} Be6 {[%emt 0:04:12]} 13. h3 {[%emt 0:04:20]} h6 {[%emt 0:00:46]} 14. Ng3 {[%emt 0:04:33]} Nc6 {[%emt 0:02:58]} 15. Be3 {[%emt 0:05:43] C90: Closed Ruy Lopez with 7...d6: Early deviations} (15. Nh2 Bf8 16. Qf3 d5 17. Ng4 Nxg4 18. hxg4 d4 19. Nf5 Rc8 20. Bd2 c4 21. Rad1 dxc3 22. bxc3 cxd3 23. Bxd3 {1-0 (37) Vachier Lagrave,M (2789)-Fressinet,L (2662) Riadh 2017}) 15... d5 {[%emt 0:04:30]} 16. d4 {[%emt 0:00:53] [#]} dxe4 $146 {[%emt 0:03:20]} ({Predecessor:} 16... exd4 17. cxd4 dxe4 18. Nxe4 c4 19. Ne5 Nb4 20. Bb1 Nxe4 21. Bxe4 Rc8 22. Qh5 Nd5 {0-1 (66) Abrahamyan,T (2333)-Friedel,J (2547) Saint Louis 2017}) 17. Nxe5 {[%emt 0:04:37]} Qc7 {[%emt 0:04:19]} 18. Nxc6 {[%emt 0:02:22]} Qxc6 {[%emt 0:00:09]} 19. dxc5 {[%emt 0:00:41]} Rad8 {[%emt 0:01:55]} 20. Qb1 {[%emt 0:01:16]} Bxc5 {[%emt 0:02:28]} 21. Nxe4 {[%emt 0:03:00]} Be7 {[%emt 0:01:35]} 22. Nxf6+ {[%emt 0:09:16]} Bxf6 {[%emt 0:00:10]} 23. Bb3 {[%emt 0:00:37]} Bg5 {[%emt 0:11:24]} 24. Bxg5 {[%emt 0:08:55]} hxg5 {[%emt 0:00:11]} 25. Bxe6 {[%emt 0:02:55]} Rxe6 {[%emt 0:00:09]} 26. Qc2 {[%emt 0:07:48]} Rde8 $16 {[%emt 0:05:09]} 27. Qd2 {[%emt 0:04:33]} Qc4 {[%emt 0:03:04]} 28. Rxe6 {[%emt 0:03:54]} Rxe6 {[%emt 0:01:19]} 29. b3 {[%emt 0:11:19]} Qe2 {[%emt 0:03:06]} 30. Rd1 {[%emt 0:00:33]} g4 {[%emt 0:08:34]} 31. Qxe2 {[%emt 0:03:58]} Rxe2 {[%emt 0:00:09]} 32. a4 {[%emt 0:00:41]} Rc2 {[%emt 0:03:52]} 33. Rd3 {[%emt 0:02:27]} gxh3 {[%emt 0:00:25]} 34. axb5 {[%emt 0:01:53]} Rc1+ {[%emt 0:00:48]} 35. Kh2 {[%emt 0:00:10]} hxg2 {[%emt 0:00:08]} 36. Kxg2 {[%emt 0:00:11]} axb5 {[%emt 0:00:06]} 37. Kf3 {[%emt 0:01:22]} Rc2 {[%emt 0:00:59]} 38. Ke3 {[%emt 0:00:19]} Kf8 {[%emt 0:03:27]} 39. f3 {[%emt 0:00:29]} Ke7 {[%emt 0:00:48]} 40. Ke4 {[%emt 0:00:00]} Ke6 {[%emt 0:00:00]} 41. Re3 {[%emt 0:05:41]} Rb2 {[%emt 0:02:17]} 42. Kd4+ {[%emt 0:02:58]} Kd6 {[%emt 0:01:50]} 43. c4 {[%emt 0:01:40]} 1/2-1/2

[Event "WYCC 2018 G18"]
[Site "Halkidiki"]
[Date "2018.10.30"]
[Round "11"]
[White "Egyed, Judit"]
[Black "Sevilla, Julia"]
[Result "1-0"]
[ECO "B53"]
[WhiteElo "2089"]
[BlackElo "1947"]
[Annotator "NA"]
[PlyCount "79"]
[EventDate "2018.10.20"]
[EventType "swiss"]
[EventCountry "GRE"]
[SourceTitle "playchess.com"]
[Source "ChessBase"]
[SourceQuality "1"]
[TimeControl "40/5400+30:1800+30"]

1. e4 c5 2. Nf3 d6 3. d4 cxd4 4. Qxd4 Nc6 5. Bb5 Bd7 {LiveBook: 2327 Games} 6. Bxc6 Bxc6 7. Nc3 e5 8. Qd3 h6 9. Nd2 {B53: Sicilian: 2...d6: Lines with Qxd4} Nf6 10. Nc4 Be7 11. Ne3 O-O 12. O-O Rc8 (12... Re8 13. a4 a6 14. a5 b5 15. axb6 Qxb6 16. Ncd5 Nxd5 17. Nxd5 Bxd5 18. Qxd5 {½-½ (18) Zvjaginsev,V (2643)-Navara,D (2708) Rijeka 2010}) 13. Nf5 Rc7 $146 ({Predecessor:} 13... Kh7 14. Rd1 Re8 15. Be3 Qa5 16. Qd2 b6 {0-1 (39) Yandemirov,V (2420)-Mochalov,E (2440) Azov 1991}) 14. Bxh6 gxh6 15. Qg3+ Ng4 16. Qxg4+ Bg5 17. h4 f6 18. Nxh6+ Kh8 19. hxg5 fxg5 20. g3 Rh7 21. Nf5 Qf6 22. f3 d5 23. Kg2 d4 24. Ne2 Bb5 25. Rae1 Rc8 26. Rh1 $18 Rxc2 27. Rxh7+ Kxh7 28. Rh1+ Kg8 29. Rh5 Rxe2+ 30. Kh3 Bd7 31. Rxg5+ Kf8 32. Rg8+ Kf7 33. Rg7+ Ke8 34. Qh5+ Kd8 35. Qh8+ Be8 36. Rd7+ Kxd7 37. Qxf6 b6 38. Qe7+ Kc6 39. Qxe8+ Kc7 40. Qxe5+ 1-0